[Event "*** Qualifier 3: Titled Tuesday 3|2 Blitz"]
[Site "Chess.com"]
[Date "2017.04.18"]
[Round "9"]
[White "Sebastian"]
[Black "Rodalquilar"]
[Result "1-0"]
[WhiteElo "2658"]
[BlackElo "2553"]
[TimeControl "180+2"]
[EndTime "14:59:50 PDT"]
[Termination "Sebastian won on time"]

1. e4 {[%clk 0:03:02]} 1... e5 {[%clk 0:03:00.9]} 2. Nf3 {[%clk 0:03:03.1]} 2...
Nc6 {[%clk 0:03:02.3]} 3. Bb5 {[%clk 0:03:04.6]} 3... a6 {[%clk 0:03:03.6]} 4.
Ba4 {[%clk 0:03:05.6]} 4... Nf6 {[%clk 0:03:05.1]} 5. O-O {[%clk 0:03:07.2]}
5... Be7 {[%clk 0:03:06.5]} 6. Re1 {[%clk 0:03:07.8]} 6... b5 {[%clk 0:03:07.4]}
7. Bb3 {[%clk 0:03:09.4]} 7... d6 {[%clk 0:03:09.3]} 8. a4 {[%clk 0:03:10.8]}
8... Bd7 {[%clk 0:02:56]} 9. Nc3 {[%clk 0:03:08.7]} 9... Nd4 {[%clk 0:02:40.8]}
10. Nxd4 {[%clk 0:02:42.7]} 10... exd4 {[%clk 0:02:42.7]} 11. Ne2 {[%clk
0:02:38.8]} 11... c5 {[%clk 0:02:40.1]} 12. d3 {[%clk 0:02:40.2]} 12... O-O
{[%clk 0:02:38.8]} 13. Ng3 {[%clk 0:02:39.9]} 13... Rc8 {[%clk 0:02:19.4]} 14.
h3 {[%clk 0:02:39.9]} 14... Re8 {[%clk 0:02:02.5]} 15. Qf3 {[%clk 0:02:29.6]}
15... c4 {[%clk 0:01:51.5]} 16. Ba2 {[%clk 0:02:31.1]} 16... Be6 {[%clk
0:01:11.6]} 17. Rd1 {[%clk 0:02:11.8]} 17... d5 {[%clk 0:00:56.3]} 18. dxc4
{[%clk 0:01:44.4]} 18... dxc4 {[%clk 0:00:56.5]} 19. Be3 {[%clk 0:01:35.5]}
19... dxe3 {[%clk 0:00:39.3]} 20. Rxd8 {[%clk 0:01:34.2]} 20... exf2+ {[%clk
0:00:40.7]} 21. Kxf2 {[%clk 0:01:30.6]} 21... Bc5+ {[%clk 0:00:40.8]} 22. Kf1
{[%clk 0:01:30.2]} 22... Rexd8 {[%clk 0:00:42.2]} 23. Rd1 {[%clk 0:01:25.8]}
23... b4 {[%clk 0:00:31.1]} 24. Rxd8+ {[%clk 0:01:07.6]} 24... Rxd8 {[%clk
0:00:32]} 25. Qe2 {[%clk 0:01:09.2]} 25... b3 {[%clk 0:00:27.5]} 26. cxb3 {[%clk
0:01:10.8]} 26... cxb3 {[%clk 0:00:29.4]} 27. Bb1 {[%clk 0:01:12.1]} 27... Rd4
{[%clk 0:00:26]} 28. Bd3 {[%clk 0:00:47.7]} 28... Rxa4 {[%clk 0:00:26.9]} 29.
Ke1 {[%clk 0:00:33.3]} 29... Ra1+ {[%clk 0:00:15.3]} 30. Kd2 {[%clk 0:00:34.2]}
30... Ra2 {[%clk 0:00:16.4]} 31. Kc1 {[%clk 0:00:32.3]} 31... Bd4 {[%clk
0:00:08.5]} 32. Bb1 {[%clk 0:00:26.3]} 32... Rxb2 {[%clk 0:00:04.9]} 33. Qd3
{[%clk 0:00:27.5]} 33... Rxb1+ {[%clk 0:00:02.1]} 34. Kxb1 {[%clk 0:00:27.8]}
34... Bc5 {[%clk 0:00:03.2]} 35. Qd8+ {[%clk 0:00:27]} 35... Bf8 {[%clk
0:00:04.5]} 36. Nf5 {[%clk 0:00:27.7]} 36... g6 {[%clk 0:00:04.5]} 37. Qxf6
{[%clk 0:00:17.7]} 37... gxf5 {[%clk 0:00:05.1]} 38. exf5 {[%clk 0:00:19.4]}
38... Bd5 {[%clk 0:00:06.2]} 39. Qg5+ {[%clk 0:00:19.5]} 39... Kh8 {[%clk
0:00:07.7]} 40. Qd8 {[%clk 0:00:19.9]} 40... Be4+ {[%clk 0:00:09.2]} 41. Kb2
{[%clk 0:00:21.4]} 41... Kg7 {[%clk 0:00:10.1]} 42. Qd4+ {[%clk 0:00:21.5]}
42... Kg8 {[%clk 0:00:11.5]} 43. Qxe4 {[%clk 0:00:22.6]} 1-0

[Event "*** Qualifier 3: Titled Tuesday 3|2 Blitz"]
[Site "Chess.com"]
[Date "2017.04.18"]
[Round "9"]
[White "Schemato"]
[Black "MyleneFarmer"]
[Result "1-0"]
[WhiteElo "2255"]
[BlackElo "2315"]
[TimeControl "180+2"]
[EndTime "15:00:00 PDT"]
[Termination "Schemato won on time"]

1. c4 {[%clk 0:03:02]} 1... c5 {[%clk 0:02:54.7]} 2. g3 {[%clk 0:03:02.9]} 2...
Nf6 {[%clk 0:02:55.6]} 3. Bg2 {[%clk 0:03:03.9]} 3... d5 {[%clk 0:02:56.9]} 4.
cxd5 {[%clk 0:03:04.5]} 4... Nxd5 {[%clk 0:02:58.8]} 5. Nc3 {[%clk 0:03:04.5]}
5... Nc7 {[%clk 0:02:59.9]} 6. Nf3 {[%clk 0:03:06.1]} 6... Nc6 {[%clk
0:03:01.2]} 7. a3 {[%clk 0:03:07.2]} 7... e5 {[%clk 0:03:02.3]} 8. b4 {[%clk
0:03:08.1]} 8... cxb4 {[%clk 0:03:02.7]} 9. axb4 {[%clk 0:03:09.3]} 9... f6
{[%clk 0:03:04.3]} 10. b5 {[%clk 0:03:09.1]} 10... Nd4 {[%clk 0:03:04.9]} 11.
Nxd4 {[%clk 0:02:54.3]} 11... exd4 {[%clk 0:02:59.9]} 12. Ne4 {[%clk 0:02:28.3]}
12... Be7 {[%clk 0:03:01]} 13. b6 {[%clk 0:02:26.3]} 13... axb6 {[%clk
0:02:49.3]} 14. Rxa8 {[%clk 0:02:27]} 14... Nxa8 {[%clk 0:02:51.2]} 15. Qb3
{[%clk 0:02:26.5]} 15... Bd7 {[%clk 0:02:52.7]} 16. O-O {[%clk 0:02:23.3]} 16...
Bc6 {[%clk 0:02:50.3]} 17. Ba3 {[%clk 0:02:20.5]} 17... Bd5 {[%clk 0:02:46.8]}
18. Bxe7 {[%clk 0:02:08.8]} 18... Kxe7 {[%clk 0:02:45.7]} 19. Qb4+ {[%clk
0:02:02.1]} 19... Kf7 {[%clk 0:02:39.7]} 20. Qxd4 {[%clk 0:02:00.8]} 20... Bxe4
{[%clk 0:01:56.6]} 21. Qxe4 {[%clk 0:01:55]} 21... Nc7 {[%clk 0:01:52.6]} 22.
Qxb7 {[%clk 0:01:52.5]} 22... Re8 {[%clk 0:01:50.4]} 23. e3 {[%clk 0:01:48.2]}
23... Qd6 {[%clk 0:01:46.2]} 24. d4 {[%clk 0:01:45.6]} 24... Re7 {[%clk
0:01:45.4]} 25. Rc1 {[%clk 0:01:40.3]} 25... Ne6 {[%clk 0:01:39.9]} 26. Qd5
{[%clk 0:01:29.9]} 26... Rd7 {[%clk 0:01:01.3]} 27. Qb3 {[%clk 0:01:14.7]} 27...
Rc7 {[%clk 0:00:57.6]} 28. Rxc7+ {[%clk 0:01:11]} 28... Qxc7 {[%clk 0:00:59.5]}
29. Bh3 {[%clk 0:01:01.2]} 29... Qc6 {[%clk 0:00:30.3]} 30. d5 {[%clk 0:00:57]}
30... Qc1+ {[%clk 0:00:30.2]} 31. Kg2 {[%clk 0:00:58]} 31... Ng5 {[%clk
0:00:23.6]} 32. Qxb6 {[%clk 0:00:39.7]} 32... Qd1 {[%clk 0:00:21.3]} 33. Be6+
{[%clk 0:00:34.3]} 33... Kg6 {[%clk 0:00:22.1]} 34. Qd4 {[%clk 0:00:18.6]} 34...
Qf3+ {[%clk 0:00:18.9]} 35. Kg1 {[%clk 0:00:18.4]} 35... f5 {[%clk 0:00:11.4]}
36. Qh4 {[%clk 0:00:08.5]} 36... Qd1+ {[%clk 0:00:07.4]} 37. Kg2 {[%clk
0:00:09.8]} 37... Qf3+ {[%clk 0:00:08.9]} 38. Kf1 {[%clk 0:00:05.8]} 38... Qd1+
{[%clk 0:00:07.5]} 39. Kg2 {[%clk 0:00:07.2]} 39... Qf3+ {[%clk 0:00:08.5]} 40.
Kg1 {[%clk 0:00:07.8]} 40... Qd1+ {[%clk 0:00:05.5]} 41. Kg2 {[%clk 0:00:09.2]}
41... Qf3+ {[%clk 0:00:04.4]} 42. Kg1 {[%clk 0:00:10.1]} 1-0

[Event "*** Qualifier 3: Titled Tuesday 3|2 Blitz"]
[Site "Chess.com"]
[Date "2017.04.18"]
[Round "9"]
[White "pastouche06"]
[Black "prochn"]
[Result "0-1"]
[WhiteElo "2301"]
[BlackElo "2208"]
[TimeControl "180+2"]
[EndTime "15:00:11 PDT"]
[Termination "prochn won by resignation"]

1. c4 {[%clk 0:03:02]} 1... c6 {[%clk 0:02:58.2]} 2. Nf3 {[%clk 0:03:02.3]} 2...
d5 {[%clk 0:02:57.7]} 3. e3 {[%clk 0:03:03.6]} 3... Nf6 {[%clk 0:02:58]} 4. d4
{[%clk 0:03:04.6]} 4... Bf5 {[%clk 0:02:55.8]} 5. Nc3 {[%clk 0:03:05.7]} 5... a6
{[%clk 0:02:54.5]} 6. Be2 {[%clk 0:03:04.9]} 6... e6 {[%clk 0:02:53.3]} 7. Nh4
{[%clk 0:03:02.6]} 7... Be4 {[%clk 0:02:49.9]} 8. f3 {[%clk 0:03:03.2]} 8... Bg6
{[%clk 0:02:47.7]} 9. Qb3 {[%clk 0:03:03.8]} 9... Qc7 {[%clk 0:02:39.3]} 10. g3
{[%clk 0:02:55.4]} 10... Bd6 {[%clk 0:02:36.1]} 11. Kf2 {[%clk 0:02:50.4]} 11...
Nbd7 {[%clk 0:02:29.8]} 12. Bd2 {[%clk 0:02:43.2]} 12... O-O {[%clk 0:02:25.7]}
13. Nxg6 {[%clk 0:02:41.5]} 13... hxg6 {[%clk 0:02:27.6]} 14. Rac1 {[%clk
0:02:40]} 14... Qd8 {[%clk 0:02:16.4]} 15. Qxb7 {[%clk 0:02:27.1]} 15... Rb8
{[%clk 0:02:17.3]} 16. Qxc6 {[%clk 0:02:27.5]} 16... Rb6 {[%clk 0:02:17.5]} 17.
Qa4 {[%clk 0:02:26.8]} 17... Rxb2 {[%clk 0:02:18.3]} 18. Rhd1 {[%clk 0:02:13.1]}
18... dxc4 {[%clk 0:02:13.5]} 19. Qxc4 {[%clk 0:02:05.4]} 19... Qa5 {[%clk
0:01:56.4]} 20. Qxa6 {[%clk 0:01:56.1]} 20... Qh5 {[%clk 0:01:30.8]} 21. Kg2
{[%clk 0:01:48.2]} 21... Bb4 {[%clk 0:01:25.6]} 22. Rb1 {[%clk 0:01:28.2]} 22...
Rxd2 {[%clk 0:01:05.3]} 23. Rxb4 {[%clk 0:01:18.6]} 23... Nb8 {[%clk 0:00:57.2]}
24. Qb5 {[%clk 0:00:43.5]} 24... Qxb5 {[%clk 0:00:48.4]} 25. Rxb5 {[%clk
0:00:45.4]} 25... Rc2 {[%clk 0:00:47.9]} 26. Rbb1 {[%clk 0:00:41.1]} 26... Rxc3
{[%clk 0:00:48.3]} 27. Kf2 {[%clk 0:00:36.5]} 27... Nc6 {[%clk 0:00:46.2]} 28.
Rd2 {[%clk 0:00:36.6]} 28... Ra8 {[%clk 0:00:44.6]} 29. Bb5 {[%clk 0:00:35.5]}
29... Ne7 {[%clk 0:00:43.3]} 30. a4 {[%clk 0:00:36]} 30... Ned5 {[%clk
0:00:30.9]} 31. e4 {[%clk 0:00:37]} 31... Nc7 {[%clk 0:00:31.9]} 32. Rdb2 {[%clk
0:00:20.2]} 32... Nxb5 {[%clk 0:00:30.7]} 33. axb5 {[%clk 0:00:22.1]} 33... Rb8
{[%clk 0:00:32]} 34. b6 {[%clk 0:00:22.9]} 34... Kf8 {[%clk 0:00:31.3]} 35. b7
{[%clk 0:00:22.7]} 35... Rc7 {[%clk 0:00:30.9]} 36. Ke3 {[%clk 0:00:22.1]} 36...
Ke7 {[%clk 0:00:23.1]} 37. Rb6 {[%clk 0:00:20]} 37... Rc2 {[%clk 0:00:21.3]} 38.
Ra1 {[%clk 0:00:17.7]} 38... Kd7 {[%clk 0:00:20.8]} 39. Raa6 {[%clk 0:00:16.9]}
39... Kc7 {[%clk 0:00:19.8]} 40. Kd3 {[%clk 0:00:17.3]} 40... Rxh2 {[%clk
0:00:19]} 41. Rc6+ {[%clk 0:00:18]} 41... Kd7 {[%clk 0:00:16.2]} 42. Rcb6 {[%clk
0:00:13.9]} 42... Rf2 {[%clk 0:00:14.8]} 43. Rd6+ {[%clk 0:00:14.4]} 43... Ke7
{[%clk 0:00:15.5]} 44. Ke3 {[%clk 0:00:15.8]} 44... Rb2 {[%clk 0:00:16.3]} 45.
e5 {[%clk 0:00:15.8]} 45... Nd5+ {[%clk 0:00:16.9]} 0-1

[Event "*** Qualifier 3: Titled Tuesday 3|2 Blitz"]
[Site "Chess.com"]
[Date "2017.04.18"]
[Round "9"]
[White "abubakrtagelsir"]
[Black "Jamaladam12200620"]
[Result "1-0"]
[WhiteElo "2173"]
[BlackElo "1992"]
[TimeControl "180+2"]
[EndTime "15:00:36 PDT"]
[Termination "abubakrtagelsir won by resignation"]

1. e4 {[%clk 0:02:58.1]} 1... e6 {[%clk 0:02:59.5]} 2. d4 {[%clk 0:02:58.6]}
2... d5 {[%clk 0:03:00.2]} 3. Nc3 {[%clk 0:02:59.4]} 3... dxe4 {[%clk
0:02:59.2]} 4. Nxe4 {[%clk 0:02:59.7]} 4... Bd7 {[%clk 0:03:00.7]} 5. Nf3 {[%clk
0:03:00.2]} 5... Bc6 {[%clk 0:03:02.1]} 6. Ng3 {[%clk 0:03:00.4]} 6... Nd7
{[%clk 0:03:03.4]} 7. Bd3 {[%clk 0:03:00.3]} 7... Ngf6 {[%clk 0:03:04.6]} 8. O-O
{[%clk 0:03:00.4]} 8... Bd6 {[%clk 0:03:05.1]} 9. c3 {[%clk 0:02:59.6]} 9... O-O
{[%clk 0:03:01.3]} 10. Qe2 {[%clk 0:03:00]} 10... Re8 {[%clk 0:02:57.3]} 11. Bd2
{[%clk 0:02:57.3]} 11... a6 {[%clk 0:02:52.8]} 12. Rae1 {[%clk 0:02:57.1]} 12...
b5 {[%clk 0:02:51.7]} 13. Bb1 {[%clk 0:02:55.7]} 13... Bd5 {[%clk 0:02:43.6]}
14. b3 {[%clk 0:02:54.7]} 14... c5 {[%clk 0:02:40.2]} 15. Ne5 {[%clk 0:02:44.9]}
15... Qc7 {[%clk 0:02:15.8]} 16. f4 {[%clk 0:02:26.9]} 16... Qb6 {[%clk
0:02:05.6]} 17. Be3 {[%clk 0:02:23.8]} 17... c4 {[%clk 0:02:04.8]} 18. bxc4
{[%clk 0:02:18]} 18... bxc4 {[%clk 0:02:03.1]} 19. Nxc4 {[%clk 0:02:16.7]} 19...
Qc7 {[%clk 0:01:57.1]} 20. Nxd6 {[%clk 0:02:16.9]} 20... Qxd6 {[%clk 0:01:57.6]}
21. c4 {[%clk 0:02:11.8]} 21... Bc6 {[%clk 0:01:52.9]} 22. Qc2 {[%clk
0:02:12.3]} 22... Reb8 {[%clk 0:01:43.6]} 23. f5 {[%clk 0:02:10.4]} 23... e5
{[%clk 0:01:39.2]} 24. d5 {[%clk 0:02:08.2]} 24... Bb7 {[%clk 0:01:38.9]} 25.
Rd1 {[%clk 0:02:06.9]} 25... Rc8 {[%clk 0:01:37.9]} 26. Qe2 {[%clk 0:02:00.3]}
26... a5 {[%clk 0:01:35.8]} 27. Nh5 {[%clk 0:01:51.7]} 27... Ba6 {[%clk
0:01:30.7]} 28. Nxf6+ {[%clk 0:01:49.9]} 28... Nxf6 {[%clk 0:01:20.3]} 29. Rc1
{[%clk 0:01:22.1]} 29... Qb4 {[%clk 0:01:18.8]} 30. Bg5 {[%clk 0:00:53.1]} 30...
Bxc4 {[%clk 0:00:56]} 31. Bd3 {[%clk 0:00:48.4]} 31... Bxd3 {[%clk 0:00:43.8]}
32. Qxd3 {[%clk 0:00:47.9]} 32... Ne4 {[%clk 0:00:37.2]} 33. Rb1 {[%clk
0:00:43.8]} 33... Qd4+ {[%clk 0:00:28.7]} 34. Qxd4 {[%clk 0:00:44.2]} 34... exd4
{[%clk 0:00:29.3]} 35. Bf4 {[%clk 0:00:44.1]} 35... Rd8 {[%clk 0:00:21.4]} 36.
Rfe1 {[%clk 0:00:44.4]} 36... Nc3 {[%clk 0:00:21.6]} 37. Rb2 {[%clk 0:00:37.3]}
37... Rxd5 {[%clk 0:00:22.1]} 38. g4 {[%clk 0:00:32.1]} 38... f6 {[%clk
0:00:16.8]} 39. Re7 {[%clk 0:00:31.3]} 39... d3 {[%clk 0:00:14.2]} 40. Bd2
{[%clk 0:00:27.5]} 40... Nb5 {[%clk 0:00:13.8]} 41. a4 {[%clk 0:00:27.7]} 41...
Nd6 {[%clk 0:00:14]} 42. Rd7 {[%clk 0:00:26.7]} 42... Re8 {[%clk 0:00:14.5]} 43.
Kf1 {[%clk 0:00:24]} 43... Re2 {[%clk 0:00:14.8]} 44. Rb8+ {[%clk 0:00:23.6]}
44... Re8 {[%clk 0:00:13.5]} 45. Rxe8+ {[%clk 0:00:23.5]} 45... Nxe8 {[%clk
0:00:14.1]} 46. Rxd5 {[%clk 0:00:24.2]} 46... Kf7 {[%clk 0:00:13.5]} 47. Rxd3
{[%clk 0:00:24.3]} 47... Nc7 {[%clk 0:00:13.9]} 48. Bxa5 {[%clk 0:00:24.6]} 1-0

[Event "*** Qualifier 3: Titled Tuesday 3|2 Blitz"]
[Site "Chess.com"]
[Date "2017.04.18"]
[Round "9"]
[White "DryCounty"]
[Black "kikydu96"]
[Result "0-1"]
[WhiteElo "2431"]
[BlackElo "2369"]
[TimeControl "180+2"]
[EndTime "15:00:47 PDT"]
[Termination "kikydu96 won by resignation"]

1. e4 {[%clk 0:03:02]} 1... e5 {[%clk 0:00:54.5]} 2. Nf3 {[%clk 0:02:49]} 2...
Nc6 {[%clk 0:00:52.9]} 3. d4 {[%clk 0:02:49.4]} 3... exd4 {[%clk 0:00:53.8]} 4.
Bc4 {[%clk 0:02:50.5]} 4... Nf6 {[%clk 0:00:54.5]} 5. e5 {[%clk 0:02:50.7]} 5...
d5 {[%clk 0:00:55.5]} 6. Bb5 {[%clk 0:02:51.3]} 6... Ng4 {[%clk 0:00:55.3]} 7.
O-O {[%clk 0:02:46.3]} 7... Be7 {[%clk 0:00:56.2]} 8. h3 {[%clk 0:02:44.8]} 8...
Nh6 {[%clk 0:00:55.4]} 9. Nxd4 {[%clk 0:02:43.2]} 9... Bd7 {[%clk 0:00:53.6]}
10. Bxc6 {[%clk 0:02:44.1]} 10... bxc6 {[%clk 0:00:55.2]} 11. Bxh6 {[%clk
0:02:44.9]} 11... gxh6 {[%clk 0:00:56.3]} 12. e6 {[%clk 0:02:43.4]} 12... Bxe6
{[%clk 0:00:55.5]} 13. Nxc6 {[%clk 0:02:43.6]} 13... Qd6 {[%clk 0:00:54]} 14.
Nxe7 {[%clk 0:02:44]} 14... Qxe7 {[%clk 0:00:54.6]} 15. Nc3 {[%clk 0:02:41.2]}
15... O-O-O {[%clk 0:00:55.3]} 16. Qd4 {[%clk 0:02:33.6]} 16... c5 {[%clk
0:00:52.3]} 17. Qa4 {[%clk 0:02:32.2]} 17... Qd7 {[%clk 0:00:47.8]} 18. Qa5
{[%clk 0:02:30.4]} 18... Qc7 {[%clk 0:00:47.6]} 19. Qxc7+ {[%clk 0:02:28.7]}
19... Kxc7 {[%clk 0:00:48.4]} 20. Ne2 {[%clk 0:02:24.3]} 20... d4 {[%clk
0:00:46.7]} 21. c3 {[%clk 0:02:17.8]} 21... Bc4 {[%clk 0:00:42.6]} 22. Rfe1
{[%clk 0:02:16.4]} 22... Rhe8 {[%clk 0:00:42.9]} 23. Ng3 {[%clk 0:02:09.3]}
23... Rxe1+ {[%clk 0:00:32.6]} 24. Rxe1 {[%clk 0:02:09.5]} 24... Bxa2 {[%clk
0:00:34.2]} 25. cxd4 {[%clk 0:02:09.8]} 25... cxd4 {[%clk 0:00:34.8]} 26. Ra1
{[%clk 0:02:08.9]} 26... d3 {[%clk 0:00:34.5]} 27. Nf1 {[%clk 0:02:08.7]} 27...
d2 {[%clk 0:00:31.1]} 28. Nxd2 {[%clk 0:02:06.4]} 28... Rxd2 {[%clk 0:00:32.3]}
29. Rxa2 {[%clk 0:02:07.6]} 29... Kb6 {[%clk 0:00:33.8]} 30. g4 {[%clk
0:02:02.3]} 30... a5 {[%clk 0:00:34.5]} 31. Kg2 {[%clk 0:02:01.8]} 31... Kb5
{[%clk 0:00:35.4]} 32. Kf3 {[%clk 0:01:57.7]} 32... Rd3+ {[%clk 0:00:30.9]} 33.
Ke2 {[%clk 0:01:49.6]} 33... Rxh3 {[%clk 0:00:31]} 34. Ra1 {[%clk 0:01:44.1]}
34... Rb3 {[%clk 0:00:31.8]} 35. Rh1 {[%clk 0:01:13.1]} 35... Rxb2+ {[%clk
0:00:32.8]} 36. Kd3 {[%clk 0:01:09.1]} 36... Rxf2 {[%clk 0:00:33.1]} 37. Rxh6
{[%clk 0:01:06]} 37... Kb4 {[%clk 0:00:31.7]} 38. Rb6+ {[%clk 0:01:03.4]} 38...
Kc5 {[%clk 0:00:28.5]} 39. Ra6 {[%clk 0:01:01.3]} 39... Kb5 {[%clk 0:00:29.4]}
40. Ra8 {[%clk 0:01:01.4]} 40... Rf4 {[%clk 0:00:28.4]} 41. g5 {[%clk
0:01:01.6]} 41... Rf5 {[%clk 0:00:29.2]} 42. Ra7 {[%clk 0:01:00.8]} 42... Rxg5
{[%clk 0:00:29.6]} 43. Rxf7 {[%clk 0:01:01.7]} 43... h5 {[%clk 0:00:31.2]} 44.
Rh7 {[%clk 0:00:44.4]} 44... Kb4 {[%clk 0:00:31.9]} 45. Kc2 {[%clk 0:00:43.7]}
45... a4 {[%clk 0:00:31.4]} 46. Rb7+ {[%clk 0:00:43.6]} 46... Ka3 {[%clk
0:00:32.2]} 47. Rf7 {[%clk 0:00:43.4]} 47... Rg4 {[%clk 0:00:18.1]} 48. Rh7
{[%clk 0:00:42.9]} 48... h4 {[%clk 0:00:18.8]} 49. Kb1 {[%clk 0:00:38.9]} 49...
Kb3 {[%clk 0:00:18.8]} 50. Rb7+ {[%clk 0:00:39.1]} 50... Rb4 {[%clk 0:00:20.4]}
51. Rh7 {[%clk 0:00:38.7]} 51... a3 {[%clk 0:00:20.8]} 52. Ka1 {[%clk
0:00:37.1]} 52... Rc4 {[%clk 0:00:19.4]} 53. Rb7+ {[%clk 0:00:36.9]} 53... Kc3
{[%clk 0:00:18.6]} 54. Ka2 {[%clk 0:00:35.7]} 54... Kd3 {[%clk 0:00:17.4]} 55.
Kxa3 {[%clk 0:00:36.2]} 55... Ke2 {[%clk 0:00:17.5]} 56. Kb3 {[%clk 0:00:36.8]}
56... Rg4 {[%clk 0:00:18.1]} 57. Rh7 {[%clk 0:00:36.7]} 57... Rg3+ {[%clk
0:00:17.8]} 58. Kc2 {[%clk 0:00:34.5]} 58... h3 {[%clk 0:00:19.2]} 59. Re7+
{[%clk 0:00:34]} 59... Kf2 {[%clk 0:00:20.6]} 60. Kd2 {[%clk 0:00:34.2]} 60...
h2 {[%clk 0:00:21.5]} 61. Re1 {[%clk 0:00:34.8]} 61... Rg1 {[%clk 0:00:20.8]}
62. Re2+ {[%clk 0:00:36]} 62... Kg3 {[%clk 0:00:22.1]} 63. Re3+ {[%clk
0:00:37.2]} 63... Kf4 {[%clk 0:00:23.3]} 64. Rh3 {[%clk 0:00:38.1]} 64... h1=Q
{[%clk 0:00:24.2]} 65. Rxh1 {[%clk 0:00:39.2]} 65... Rxh1 {[%clk 0:00:26.1]} 0-1

[Event "*** Qualifier 3: Titled Tuesday 3|2 Blitz"]
[Site "Chess.com"]
[Date "2017.04.18"]
[Round "9"]
[White "JoachimBN"]
[Black "GMMarcinDziuba"]
[Result "1-0"]
[WhiteElo "2662"]
[BlackElo "2541"]
[TimeControl "180+2"]
[EndTime "15:00:57 PDT"]
[Termination "JoachimBN won by resignation"]

1. c4 {[%clk 0:03:00]} 1... e5 {[%clk 0:03:00.3]} 2. Nc3 {[%clk 0:02:59]} 2...
Nc6 {[%clk 0:02:58.5]} 3. Nf3 {[%clk 0:02:59.2]} 3... Nf6 {[%clk 0:02:59.8]} 4.
e3 {[%clk 0:02:59.2]} 4... Bb4 {[%clk 0:02:58.9]} 5. Qc2 {[%clk 0:03:00.3]} 5...
Bxc3 {[%clk 0:03:00.3]} 6. Qxc3 {[%clk 0:03:00.8]} 6... d6 {[%clk 0:02:59.2]} 7.
a3 {[%clk 0:02:59.7]} 7... O-O {[%clk 0:03:00.2]} 8. d3 {[%clk 0:02:58.5]} 8...
a5 {[%clk 0:02:57.6]} 9. b3 {[%clk 0:02:54]} 9... Re8 {[%clk 0:02:28.6]} 10. Bb2
{[%clk 0:02:52.8]} 10... d5 {[%clk 0:02:29.9]} 11. cxd5 {[%clk 0:02:50]} 11...
Nxd5 {[%clk 0:02:30.4]} 12. Qc2 {[%clk 0:02:51.3]} 12... f6 {[%clk 0:02:23.1]}
13. Be2 {[%clk 0:02:50.8]} 13... Be6 {[%clk 0:02:22.8]} 14. O-O {[%clk
0:02:52.1]} 14... Bf7 {[%clk 0:02:16.9]} 15. Kh1 {[%clk 0:02:50.6]} 15... Nce7
{[%clk 0:02:17.9]} 16. Rg1 {[%clk 0:02:43]} 16... b6 {[%clk 0:02:13.2]} 17. g4
{[%clk 0:02:43.9]} 17... h6 {[%clk 0:02:10.6]} 18. d4 {[%clk 0:02:42.4]} 18...
e4 {[%clk 0:01:58.2]} 19. Nd2 {[%clk 0:02:06.9]} 19... Bg6 {[%clk 0:01:58.9]}
20. h4 {[%clk 0:02:02.2]} 20... Nc8 {[%clk 0:01:55.4]} 21. h5 {[%clk 0:01:57.8]}
21... Bh7 {[%clk 0:01:55.8]} 22. Bb5 {[%clk 0:01:57.4]} 22... Re6 {[%clk
0:01:50.6]} 23. Bc6 {[%clk 0:01:58.5]} 23... Ra7 {[%clk 0:01:45.9]} 24. Rac1
{[%clk 0:01:56.2]} 24... Nce7 {[%clk 0:01:46.7]} 25. Bb5 {[%clk 0:01:55.3]}
25... c6 {[%clk 0:01:39.9]} 26. Be2 {[%clk 0:01:53.2]} 26... Kh8 {[%clk
0:01:37.2]} 27. Nc4 {[%clk 0:01:49.9]} 27... Ng8 {[%clk 0:01:31.1]} 28. Rg2
{[%clk 0:01:48.4]} 28... Rf7 {[%clk 0:01:31]} 29. Qd1 {[%clk 0:01:42.3]} 29...
Rb7 {[%clk 0:01:20.5]} 30. Qg1 {[%clk 0:01:39.4]} 30... Nge7 {[%clk 0:01:16.9]}
31. Qh2 {[%clk 0:01:36.2]} 31... Qc7 {[%clk 0:01:17.9]} 32. Qxc7 {[%clk
0:01:34.7]} 32... Rxc7 {[%clk 0:01:18.6]} 33. Rgg1 {[%clk 0:01:36.6]} 33... Ra7
{[%clk 0:01:16.3]} 34. Rc2 {[%clk 0:01:34]} 34... b5 {[%clk 0:01:17.6]} 35. Nd2
{[%clk 0:01:35.3]} 35... a4 {[%clk 0:01:19.1]} 36. bxa4 {[%clk 0:01:33.7]} 36...
Rxa4 {[%clk 0:01:19.1]} 37. Nb3 {[%clk 0:01:35.1]} 37... Ra7 {[%clk 0:01:13.4]}
38. Rgc1 {[%clk 0:01:34.8]} 38... Rd6 {[%clk 0:01:11.8]} 39. Nc5 {[%clk
0:01:33.2]} 39... Rd8 {[%clk 0:01:04.4]} 40. Kg2 {[%clk 0:01:29.3]} 40... Rda8
{[%clk 0:01:04.7]} 41. Kg3 {[%clk 0:01:24.9]} 41... Kg8 {[%clk 0:01:05.1]} 42.
Ne6 {[%clk 0:01:22.5]} 42... Kf7 {[%clk 0:01:05.1]} 43. Nf4 {[%clk 0:01:21.2]}
43... Nxf4 {[%clk 0:00:56.6]} 44. Kxf4 {[%clk 0:01:23.1]} 44... Ke8 {[%clk
0:00:55.6]} 45. Rxc6 {[%clk 0:01:09.9]} 45... Nxc6 {[%clk 0:00:50.1]} 46. Rxc6
{[%clk 0:01:11.8]} 46... Rb8 {[%clk 0:00:46.4]} 47. Bd1 {[%clk 0:01:12.9]} 47...
Kd7 {[%clk 0:00:42.7]} 48. Rc5 {[%clk 0:01:11.2]} 48... Rc7 {[%clk 0:00:42.7]}
49. Rxc7+ {[%clk 0:01:08.9]} 49... Kxc7 {[%clk 0:00:43.9]} 50. Bc3 {[%clk
0:01:10.8]} 50... Re8 {[%clk 0:00:21.4]} 51. Bb3 {[%clk 0:01:08.2]} 51... Kc6
{[%clk 0:00:18.2]} 52. Bb4 {[%clk 0:01:09.1]} 52... Kc7 {[%clk 0:00:17.5]} 53.
d5 {[%clk 0:01:04.7]} 53... Kd7 {[%clk 0:00:18.8]} 54. a4 {[%clk 0:00:59.5]}
54... Rb8 {[%clk 0:00:18.5]} 55. axb5 {[%clk 0:00:57.4]} 55... Kd8 {[%clk
0:00:19.3]} 56. b6 {[%clk 0:00:56.1]} 56... Kc8 {[%clk 0:00:20]} 57. Bc5 {[%clk
0:00:54.1]} 57... Bg8 {[%clk 0:00:16.1]} 58. Kxe4 {[%clk 0:00:54.7]} 58... Kb7
{[%clk 0:00:16.7]} 59. Ba4 {[%clk 0:00:53.3]} 59... Ka6 {[%clk 0:00:15.8]} 60.
Bc6 {[%clk 0:00:53]} 60... Bf7 {[%clk 0:00:17.2]} 61. Kd4 {[%clk 0:00:52.9]}
61... Be8 {[%clk 0:00:18.5]} 62. e4 {[%clk 0:00:52.2]} 62... Rc8 {[%clk
0:00:18]} 63. b7 {[%clk 0:00:51.2]} 63... Rd8 {[%clk 0:00:19.4]} 64. Be7 {[%clk
0:00:47.6]} 64... Bxc6 {[%clk 0:00:19.6]} 65. Bxd8 {[%clk 0:00:48.1]} 65... Bxb7
{[%clk 0:00:20.9]} 66. Be7 {[%clk 0:00:49.2]} 66... Bc8 {[%clk 0:00:22]} 67. f3
{[%clk 0:00:49.4]} 1-0